bitfinex/quotes_ETHUSD_20260313
["timestamp","ask_amount","ask_price","bid_price","bid_amount"]
[1773362478284,0.45459548,2133.3,2132.1,1.376]
[1773362478486,0.45459548,2133.3,2131.9,2.54765627]
[1773362478686,0.45459548,2133.3,2132.0,0.23073717]
[1773362478858,0.45459548,2133.3,2132.1,0.27763928]
[1773362479184,1.62654372,2133.2,2132.2,1.17249788]
[1773362479377,1.62654372,2133.2,2132.3,0.04689771]
[1773362480086,1.62654372,2133.2,2132.2,1.17249788]
[1773362480291,1.62654372,2133.2,2132.3,0.04689578]
[1773362480490,0.45459548,2133.2,2132.3,0.04689578]
[1773362480689,0.45459548,2133.2,2132.2,1.17249788]
[1773362481293,1.17200318,2133.1,2132.2,0.23073717]
[1773362481495,1.62864357,2133.1,2132.2,0.23073717]
[1773362481994,0.45664039,2133.0,2132.1,1.17255288]
[1773362482493,0.45664039,2133.0,2132.0,3.69370984]
[1773362482673,0.45664039,2133.0,2132.0,1.17259032]
[1773362483063,4.66115869,2133.1,2131.7,0.001]
[1773362483064,0.45664039,2132.6,2131.7,0.001]
[1773362483294,0.45664039,2132.4,2131.7,0.001]
[1773362485301,1.62903872,2132.4,2131.7,0.001]
[1773362485511,0.45664039,2132.4,2131.7,0.001]
[1773362485793,1.17236908,2132.5,2131.7,0.001]
[1773362486169,5.14564282,2132.7,2131.8,1.47451814]
[1773362486170,0.45664039,2132.7,2131.8,1.47451814]
[1773362486376,0.45664039,2133.0,2131.9,0.10151814]
[1773362486574,1.17200318,2133.1,2131.9,0.10151814]
[1773362487094,0.45664039,2133.0,2131.9,0.10151814]
[1773362487302,1.62871901,2133.0,2132.0,1.17260787]
[1773362488206,0.45664039,2133.0,2132.0,1.17260787]
[1773362488417,0.45664039,2133.0,2132.1,0.04690211]
[1773362488578,1.62870222,2133.0,2132.1,2.4388026]
[1773362488783,0.45664039,2132.9,2132.1,2.39190049]
[1773362488994,0.45664039,2132.8,2131.8,1.17268168]
[1773362489189,0.45664039,2132.8,2131.7,1.17372973]
[1773362489405,0.45664039,2132.6,2131.7,1.17372973]
[1773362491005,0.45664039,2132.6,2131.7,0.001]
[1773362491222,0.45664039,2132.5,2131.5,1.17384695]
[1773362491388,0.45664039,2132.5,2131.5,0.001]
[1773362491389,0.45664039,2132.3,2131.5,0.001]
[1773362493412,0.45664039,2132.7,2131.5,0.10251814]
[1773362493610,1.62891836,2132.6,2131.6,1.17282792]
[1773362493811,0.45664039,2132.6,2131.6,1.27434606]
[1773362494015,0.45664039,2132.6,2131.7,0.10151814]
[1773362494388,1.62879561,2132.9,2131.7,0.10151814]
[1773362494594,1.62879561,2132.9,2131.8,0.04690871]
[1773362494794,1.62875639,2132.9,2131.9,1.37]
[1773362495196,0.45664039,2133.1,2131.9,1.47251814]
[1773362495496,1.62875347,2132.9,2132.1,1.17255288]
[1773362496526,0.45664039,2132.8,2132.1,1.17255288]
[1773362498129,1.62885561,2132.8,2132.1,1.17255288]
[1773362499422,1.17221522,2132.8,2132.0,2.542587]
[1773362499629,0.45664039,2132.7,2131.9,0.001]
[1773362500001,0.45664039,2132.7,2131.9,0.04790651]
[1773362500212,0.45664039,2132.7,2131.9,0.001]
[1773362500413,0.45664039,2132.5,2131.9,0.001]
[1773362500629,0.45664039,2132.5,2131.6,0.001]
[1773362503137,0.45664039,2132.3,2131.6,0.001]
[1773362503673,0.45664039,2132.3,2131.4,0.001]
[1773362503814,1.17238791,2132.4,2131.4,0.001]
[1773362503815,0.48026213,2132.1,2131.4,0.001]
[1773362504014,0.48026213,2132.0,2131.4,0.001]
[1773362506143,0.48026213,2132.0,2131.2,0.001]
[1773362506144,0.48026213,2131.8,2131.2,0.001]
[1773362506847,0.48026213,2131.8,2130.8,0.001]
[1773362508238,0.48026213,2131.6,2130.8,0.001]
[1773362509240,0.48026213,2131.6,2130.6,0.06057004]
[1773362509241,0.48026213,2131.4,2130.6,0.06057004]
[1773362509457,0.48026213,2131.2,2130.6,0.06057004]
[1773362510149,0.48026213,2131.0,2130.6,0.06057004]
[1773362510355,0.48026213,2131.0,2128.9,4.59395739]
[1773362510356,0.48026213,2130.8,2129.9,1.1737584]
[1773362511133,0.48026213,2130.8,2129.8,4.69522603]
[1773362511134,0.48026213,2130.8,2129.6,3.72122592]
[1773362511335,0.48075249,2130.5,2129.5,1.17396068]
[1773362511552,0.48075249,2130.5,2129.1,1.364]
[1773362511740,1.427,2130.9,2129.1,1.364]
[1773362511741,0.48075249,2130.2,2129.1,1.364]
[1773362512030,0.48075249,2130.1,2129.1,1.364]
[1773362512245,0.48075249,2130.1,2128.4,1.46751814]
[1773362512246,0.48075249,2129.9,2128.4,1.46751814]
[1773362512840,0.48075249,2129.8,2128.4,1.46751814]
[1773362513043,4.69483568,2130.1,2128.4,1.46751814]
[1773362513044,0.48075249,2130.1,2128.8,3.48915551]
[1773362513257,0.48075249,2130.4,2129.4,0.10351814]
[1773362513442,0.48075249,2130.4,2129.4,1.46751814]
[1773362513653,0.48075249,2130.4,2128.7,0.37398818]
[1773362513654,0.48075249,2130.4,2128.7,0.10351814]
[1773362513856,0.48075249,2130.1,2128.7,0.10351814]
[1773362514023,0.48075249,2130.1,2128.7,1.46651814]
[1773362514223,0.48075249,2129.9,2128.8,1.17437053]
[1773362514429,0.48075249,2129.6,2128.4,1.17453605]
[1773362515148,0.48075249,2129.6,2128.3,0.04127713]
[1773362515149,0.48075249,2129.1,2128.3,0.04127713]
[1773362515464,3.48915551,2129.6,2127.6,4.9899966]
[1773362515465,0.48075249,2128.8,2127.6,0.2900859]
[1773362515663,0.48075249,2128.8,2127.6,1.46507473]
[1773362515961,0.48075249,2128.5,2127.6,0.2900859]
[1773362516146,0.48075249,2128.3,2127.6,0.2900859]
[1773362517054,0.48075249,2128.7,2127.6,1.46510065]
[1773362517570,3.48915551,2128.9,2127.6,1.46511517]
[1773362517571,0.48075249,2128.8,2127.6,1.46511517]
[1773362517745,0.48075249,2128.8,2127.6,0.2900859]
[1773362518181,0.48075249,2128.6,2127.6,1.46511238]
[1773362518473,0.48075249,2128.6,2127.6,0.2900859]
[1773362518674,0.48075249,2128.6,2127.6,1.46507768]
[1773362518854,0.48075249,2128.6,2127.7,0.04132488]
[1773362519056,0.48075249,2128.6,2127.6,0.2900859]
[1773362519255,0.48075249,2128.5,2127.6,0.2900859]
[1773362520176,0.48075249,2127.9,2127.1,0.04133444]
[1773362520480,0.48075249,2127.9,2126.4,0.1679439]
[1773362520481,0.48075249,2127.5,2126.4,1.34363925]
[1773362520652,0.48075249,2127.5,2126.4,1.34362237]
[1773362520850,0.48075249,2127.5,2126.4,0.1679439]
[1773362521054,0.48075249,2127.2,2126.4,0.1679439]
[1773362521375,3.48915551,2127.3,2126.4,0.1679439]
[1773362521376,0.14948499,2127.1,2126.4,0.1679439]
[1773362521576,0.48075249,2126.9,2126.4,0.1679439]
[1773362521958,0.48075249,2126.9,2125.9,1.17592243]
[1773362521959,3.969908,2126.7,2125.5,1.21757896]
[1773362522159,0.48075249,2126.6,2125.5,1.21759866]
[1773362522459,0.48075249,2126.4,2125.0,1.17647058]
[1773362522672,1.65623311,2126.8,2125.2,0.30351815]
[1773362523059,0.48075249,2126.8,2126.6,0.001]
[1773362523386,0.48075249,2126.8,2125.1,8.19475851]
[1773362523387,0.48075249,2126.7,2125.5,1.359]
[1773362523690,0.48075249,2126.7,2126.4,0.001]
[1773362523855,0.48075249,2126.7,2125.2,1.359]
[1773362524055,0.48075249,2126.7,2125.2,1.66251815]
[1773362524361,0.48075249,2126.4,2126.1,0.001]
[1773362524578,0.48075249,2126.4,2124.9,5.06246895]
[1773362524757,0.48075249,2126.4,2125.0,1.17647058]
[1773362524964,0.48075249,2126.4,2125.1,0.30351815]
[1773362525562,1.1753091,2127.1,2125.2,0.34497197]
[1773362525763,1.1753091,2127.1,2125.2,0.30351815]
[1773362525764,0.48075249,2127.0,2125.2,0.30351815]
[1773362526073,0.48075249,2127.0,2125.4,0.30351815]
[1773362526384,0.48075249,2126.9,2125.5,1.47971198]
[1773362526594,3.48915551,2126.5,2125.5,1.17619383]
[1773362526894,0.48075249,2126.4,2125.5,1.17619383]
[1773362527062,0.48075249,2126.4,2125.6,0.0138576]
[1773362527258,0.48075249,2126.4,2125.5,1.17619383]
[1773362527993,0.48075249,2126.4,2125.5,1.21763464]
[1773362528316,0.48075249,2126.4,2125.4,1.17621822]
[1773362528458,0.48075249,2126.4,2125.1,1.356]
[1773362528459,0.48075249,2126.2,2125.2,4.7049967]
[1773362529362,0.48075249,2126.2,2125.3,0.01053625]
[1773362529592,0.48075249,2126.2,2125.2,4.7049967]
[1773362530773,0.48075249,2126.2,2124.9,1.17652595]
[1773362530774,1.1758619,2126.1,2124.9,1.17652595]
[1773362530976,0.48075249,2126.0,2124.9,1.17652595]
[1773362531896,0.48075249,2126.0,2124.9,2.53052595]
[1773362532113,0.48075249,2126.0,2124.4,4.70720681]
[1773362532114,0.48075249,2125.9,2124.4,4.70720681]
[1773362532317,0.48075249,2125.9,2124.5,0.38417511]
[1773362532518,0.48075249,2125.9,2124.5,0.3427148]
[1773362532908,0.48075249,2125.7,2124.7,1.1766367]
[1773362533417,0.48075249,2125.7,2124.7,2.5306367]
[1773362534021,1.17598435,2125.9,2124.7,2.93458507]
[1773362534320,0.48075249,2125.8,2124.7,2.5306367]
[1773362534922,0.48075249,2125.8,2124.7,2.99451092]
[1773362535119,1.23482337,2125.9,2124.7,2.99451092]
[1773362535417,0.53955111,2125.9,2124.8,0.47189647]
[1773362535618,0.23706855,2126.6,2124.8,0.47189647]
[1773362535619,1.65664116,2126.1,2124.8,0.47189647]
[1773362535823,0.53954835,2126.0,2124.8,0.47189647]
[1773362536403,0.05879586,2126.0,2124.8,0.47189647]
[1773362536909,0.05879586,2126.0,2124.9,1.17652595]
[1773362537104,1.17592571,2126.0,2124.9,1.17652595]
[1773362537305,1.17592571,2126.0,2124.5,4.7075468]
[1773362537306,0.48075249,2125.0,2124.5,0.001]
[1773362537506,6.97831102,2125.6,2124.5,0.001]
[1773362537507,0.48075249,2125.4,2124.5,1.17774246]
[1773362537729,0.48075249,2125.4,2124.5,0.001]
[1773362537896,0.48075249,2125.2,2124.5,0.001]
[1773362538097,0.48075249,2125.2,2124.5,1.17773493]
[1773362538302,0.48075249,2125.2,2124.5,0.001]
[1773362538924,0.48075249,2125.0,2124.5,0.001]
[1773362539498,0.48075249,2124.9,2123.3,1.352]
[1773362539721,0.48075249,2124.9,2123.4,4.70920649]
[1773362541019,0.48075249,2124.9,2123.4,5.5072061]
[1773362541020,0.81331567,2124.7,2123.4,5.5072061]
[1773362541222,0.81331567,2124.7,2123.5,0.79799961]
[1773362541422,1.98989699,2124.8,2123.5,0.79799961]
[1773362541718,1.98989699,2124.8,2123.6,0.79799961]
[1773362541719,1.17658132,2124.8,2123.6,0.79799961]
[1773362541920,1.17641522,2125.1,2123.8,0.79799961]
[1773362542122,1.17641522,2125.1,2123.9,0.83952543]
[1773362542334,1.23500352,2125.5,2123.9,0.83952543]
[1773362542511,1.23500352,2125.5,2124.3,0.79799961]
[1773362542512,0.05880969,2125.5,2124.3,0.79799961]
[1773362542714,0.05880969,2125.5,2124.5,0.79799961]
[1773362543243,0.05879862,2125.9,2124.7,0.79799961]
[1773362543544,0.05879862,2125.9,2124.6,1.17669208]
[1773362543545,0.05879862,2125.9,2124.9,0.79799961]
[1773362543839,1.1758619,2126.1,2124.9,0.79799961]
[1773362544143,0.002,2126.2,2125.1,0.79799961]
[1773362544318,1.17781686,2126.2,2125.1,0.79799961]
[1773362544517,0.01736658,2126.1,2125.1,0.79799961]
[1773362545031,1.19324588,2126.1,2125.2,1.17635987]
[1773362545440,0.01736658,2126.1,2125.2,1.97435948]
[1773362545609,0.01936658,2126.2,2125.2,1.97435948]
[1773362545933,1.17784993,2126.2,2125.2,1.97435948]
[1773362546136,1.17784993,2126.2,2125.2,1.17635987]
[1773362546137,0.01736658,2126.1,2125.2,1.17635987]
[1773362546339,0.01736658,2126.1,2125.2,2.52535987]
[1773362546546,1.17784993,2126.2,2125.3,0.79799961]
[1773362546547,0.01936658,2126.2,2125.3,0.79799961]
[1773362546714,1.1778074,2126.2,2125.3,0.79799961]
[1773362547029,0.002,2126.2,2125.3,0.79799961]
[1773362547238,1.195194,2126.2,2125.4,1.17624917]
[1773362547606,1.195194,2126.2,2125.3,1.1762625]
[1773362547812,1.195194,2126.2,2124.9,0.79799961]
[1773362547813,1.195194,2126.2,2125.1,1.348]
[1773362548351,0.002,2126.2,2125.2,0.79799961]
[1773362548536,1.19517644,2126.2,2125.1,1.348]
[1773362549114,1.19517644,2126.2,2125.2,1.17635987]
[1773362549540,0.01936658,2126.2,2125.2,1.17635987]
[1773362549739,0.002,2126.2,2125.3,0.79799961]
[1773362550938,0.002,2126.2,2125.4,1.347]
[1773362551139,1.98879698,2126.8,2125.6,0.79799961]
[1773362551435,6.89975449,2127.4,2125.6,0.79799961]
[1773362551436,1.98862477,2127.1,2125.6,0.79799961]
[1773362551843,1.98862477,2127.1,2125.9,0.79799961]
[1773362552253,1.1753091,2127.1,2125.9,0.79799961]
[1773362552660,1.17514336,2127.4,2125.9,0.79799961]
[1773362552864,5.51388913,2127.5,2125.6,7.0337743]
[1773362552865,1.98844456,2127.5,2126.3,0.79799961]
[1773362553028,1.98844456,2127.5,2125.7,0.065536]
[1773362553029,1.9879621,2128.3,2126.9,0.79799961]
[1773362553351,1.17465493,2128.3,2127.1,0.79799961]
[1773362553717,0.81331567,2128.5,2127.0,1.17536436]
[1773362554067,0.81331567,2128.5,2127.0,2.52236436]
[1773362554233,0.81331567,2128.5,2127.1,0.79799961]
[1773362554549,1.17448087,2128.6,2127.3,0.79799961]
[1773362554766,0.81331567,2128.3,2127.0,2.52136436]
[1773362554966,0.81331567,2128.3,2127.0,1.346]
[1773362555291,0.81331567,2128.3,2127.1,1.1753091]
[1773362555292,1.98801729,2128.2,2127.1,1.1753091]
[1773362555563,1.17453605,2128.5,2127.2,0.79799961]
[1773362555965,0.81331567,2128.4,2127.1,1.1753091]
[1773362556845,0.81331567,2128.1,2126.9,1.346]
[1773362557274,1.17481203,2128.0,2127.0,1.17536436]
[1773362558761,1.9881277,2128.0,2127.0,1.17536436]
[1773362560170,0.81331567,2127.9,2126.9,2.52137793]
[1773362560340,0.81331567,2127.9,2126.4,1.344]
[1773362560341,0.81331567,2127.5,2126.4,1.344]
[1773362560672,0.81331567,2127.5,2126.1,1.17580797]
[1773362562072,1.17514336,2127.4,2126.2,0.79799961]
[1773362562701,4.69947449,2127.9,2126.1,3.66171575]
[1773362562702,1.98821227,2127.9,2126.5,0.79799961]
[1773362562987,1.98821227,2127.9,2126.6,2.14199961]
[1773362563188,1.98821227,2127.9,2126.7,1.33909818]
[1773362563370,2.43837347,2128.3,2126.7,1.33909818]
[1773362563571,1.26172704,2128.2,2126.7,1.33909818]
[1773362563955,1.17475682,2128.1,2126.8,2.51457307]
[1773362564396,1.17475682,2128.1,2126.9,1.33909818]
[1773362565451,2.43646386,2128.2,2126.9,1.33909818]
[1773362565754,2.43646386,2128.2,2126.8,1.17547489]
[1773362565755,0.002,2128.3,2127.1,1.33909818]
[1773362565973,0.002,2128.3,2127.3,1.33909818]
[1773362566292,0.002,2128.3,2127.4,2.68209818]
[1773362566658,0.002,2128.3,2127.5,1.33909818]
[1773362566953,2.69384832,2128.9,2127.5,1.33909818]
[1773362566954,1.17434171,2128.9,2127.5,1.33909818]
[1773362567787,5.95834517,2129.2,2127.7,1.33909818]
[1773362568087,1.26172704,2129.1,2127.8,1.17492245]
[1773362569106,1.26172704,2129.1,2127.9,1.342]
[1773362569389,5.95800159,2129.4,2127.9,2.68109818]
[1773362569991,1.26172704,2129.3,2128.0,1.17481203]
[1773362570586,1.26172704,2129.3,2127.9,1.17484461]
[1773362571870,1.17414991,2129.2,2127.9,1.17484461]
[1773362572178,1.44127755,2129.1,2127.9,1.17484461]
[1773362573497,1.44127755,2129.1,2127.8,2.5168983]
[1773362573880,2.61553776,2129.0,2127.8,2.5168983]
[1773362574470,1.44127755,2128.7,2127.8,1.342]
[1773362574704,1.44127755,2128.7,2127.3,1.34]
[1773362575083,1.44127755,2128.9,2127.5,1.52665829]
[1773362575275,1.44127755,2128.6,2127.3,1.34]
[1773362576002,2.6158136,2128.5,2127.4,1.17514336]
[1773362577236,1.44127755,2128.4,2127.4,1.17514336]
[1773362578138,1.17462616,2128.4,2127.4,1.17514336]
[1773362578440,1.17462616,2128.4,2128.0,0.001]
[1773362578647,2.61570325,2128.7,2128.0,0.001]
[1773362579239,1.44127755,2128.6,2127.8,0.001]
[1773362580133,2.6158136,2128.5,2127.8,0.001]
[1773362580638,1.44127755,2128.4,2127.8,0.001]
[1773362581209,1.44127755,2128.3,2126.8,1.17547489]
[1773362581410,1.44127755,2128.3,2126.9,1.339]
[1773362581947,1.44127755,2128.0,2126.4,1.17664072]
[1773362582240,1.44127755,2128.0,2126.4,1.34]
[1773362582241,1.44127755,2127.6,2126.4,1.34]
[1773362582438,1.17497767,2127.7,2126.4,0.001]
[1773362582439,1.44127755,2127.4,2126.4,0.001]
[1773362584030,1.44127755,2127.2,2126.4,0.001]
[1773362584324,1.44127755,2127.2,2126.1,0.001]
[1773362585540,1.44127755,2127.0,2126.1,0.001]
[1773362586037,1.44127755,2126.8,2126.1,0.001]
[1773362586242,1.44127755,2126.8,2125.7,1.338]
[1773362586734,1.44127755,2126.8,2125.4,1.17621555]
[1773362587824,1.44127755,2126.7,2125.4,1.17621555]
[1773362588230,1.44127755,2126.7,2125.3,4.70521467]
[1773362588231,1.44127755,2126.5,2125.3,4.70521467]
[1773362588829,1.44127755,2126.5,2125.3,1.17630452]
[1773362590315,1.17569601,2126.4,2125.3,1.17630452]
[1773362590518,2.61697356,2126.4,2125.3,1.17630452]
[1773362591447,1.17569601,2126.4,2125.4,1.52665829]
[1773362591616,1.44127755,2127.2,2125.4,1.52665829]
[1773362591817,1.17508813,2127.5,2126.2,1.52665829]
[1773362592122,2.61634326,2127.6,2126.4,1.52665829]
[1773362592428,2.61634326,2127.6,2126.1,6.12339775]
[1773362592429,1.44127755,2127.5,2126.2,1.17576715]
[1773362592918,1.44127755,2127.5,2125.6,8.221329]
[1773362592919,1.44127755,2127.3,2125.7,1.17608317]
[1773362593243,4.91188715,2127.4,2125.8,1.335]
[1773362593244,1.44327755,2127.0,2125.8,1.335]
[1773362593832,1.44327755,2127.0,2125.8,2.86165829]
[1773362594018,0.002,2127.0,2125.9,1.52665829]
[1773362594446,0.002,2127.0,2126.0,1.17591721]
[1773362594948,0.002,2127.0,2126.1,1.57369276]
[1773362595134,0.002,2127.0,2126.1,1.52665829]
[1773362595337,0.002,2127.2,2126.3,1.52665829]
[1773362595541,0.002,2127.2,2126.3,1.57368834]
[1773362596058,0.002,2127.2,2126.3,1.52665829]
[1773362596262,0.002,2127.2,2126.4,1.335]
[1773362596753,0.002,2127.2,2126.3,1.1757513]
[1773362597644,0.002,2127.2,2126.2,1.17576872]
[1773362597645,1.44327755,2127.2,2126.2,1.17576872]
[1773362598051,1.44327755,2127.2,2126.1,1.17582029]
[1773362598569,1.44327755,2127.2,2126.0,2.50987427]
[1773362599259,1.44127755,2127.0,2126.1,1.222891]
[1773362599554,1.44127755,2127.0,2126.3,5.0]
[1773362600252,1.1753091,2127.1,2126.3,5.0]
[1773362600462,1.8066834,2127.0,2126.3,5.0]
[1773362601163,1.8066834,2127.0,2125.6,4.70453762]
[1773362601164,1.8066834,2126.8,2125.6,1.333]
[1773362601462,1.8066834,2126.7,2125.5,1.17719023]
[1773362601663,1.8066834,2126.7,2125.5,1.22423798]
[1773362601827,1.8066834,2126.7,2125.5,1.17719023]
[1773362602253,1.8066834,2126.7,2125.6,0.04704554]
[1773362602448,1.8066834,2126.7,2125.5,1.17718705]
[1773362603254,1.8066834,2126.5,2125.5,1.17718491]
[1773362603670,0.02352,2126.3,2125.5,1.17718491]
[1773362603836,0.02352,2126.3,2125.5,1.17719229]
[1773362604164,0.02352,2126.3,2125.5,1.17718925]
[1773362604366,0.02352,2126.3,2125.6,1.90503228]
[1773362604663,1.17558544,2126.6,2125.6,1.90503228]
[1773362604843,4.70197345,2126.8,2125.6,1.90503228]
[1773362605245,1.17547489,2126.8,2125.8,1.90503228]
[1773362605862,1.1773091,2127.2,2125.8,1.90503228]
[1773362606167,1.1753091,2127.1,2125.8,1.90503228]
[1773362606467,0.002,2127.2,2126.2,1.90503228]
[1773362606665,1.17726419,2127.2,2126.4,1.90503228]
[1773362606837,0.002,2127.2,2126.4,1.90503228]
[1773362607337,0.002,2127.2,2126.2,3.51092921]
[1773362607338,1.8086834,2127.2,2126.2,1.332]
[1773362607966,1.8086834,2127.2,2126.3,0.04703005]
[1773362608165,1.8086834,2127.2,2126.2,1.332]
[1773362608166,0.002,2127.0,2126.2,1.332]
[1773362609166,0.002,2127.0,2126.3,0.04703005]
[1773362609335,0.002,2127.0,2126.3,1.22274484]
[1773362609666,0.002,2127.0,2126.3,1.22278059]
[1773362610067,0.002,2127.0,2126.3,1.17575054]
[1773362610475,0.002,2127.0,2126.3,1.22278059]
[1773362610636,0.002,2127.0,2126.2,1.332]
[1773362611770,0.002,2127.0,2126.2,2.5077979]
[1773362612064,0.002,2127.0,2126.2,1.332]
[1773362612739,0.002,2127.0,2126.2,2.50780571]
[1773362613268,0.002,2127.0,2126.2,2.50780209]
[1773362613670,0.002,2127.0,2126.2,1.332]
[1773362614040,0.002,2127.0,2126.2,2.50780314]
[1773362614242,0.002,2127.0,2126.3,0.04703005]
[1773362614877,0.002,2127.0,2126.2,2.50780314]
[1773362615243,0.002,2127.0,2126.1,1.17584863]
[1773362615446,1.8086834,2127.0,2126.0,1.90503228]
[1773362615757,1.8086834,2127.0,2126.0,3.0809395]
[1773362616141,1.8086834,2127.0,2125.9,2.50592833]
[1773362616344,1.8086834,2127.0,2125.8,2.50599345]
[1773362616567,1.8086834,2127.0,2125.8,1.33]
[1773362616742,1.8086834,2127.0,2125.9,0.0470389]
[1773362617142,1.8086834,2127.0,2125.8,1.33]
[1773362617373,1.17541962,2126.9,2125.9,1.17597252]
[1773362618575,1.17541962,2126.9,2125.9,3.0810048]
[1773362619857,1.17541962,2126.9,2126.0,1.90503228]
[1773362620256,1.17541962,2126.9,2126.1,0.04703447]
[1773362620471,1.17541962,2126.9,2126.1,1.95206675]
[1773362620849,1.17541962,2126.9,2125.9,1.17597252]
[1773362621176,2.98210302,2126.9,2126.0,0.04703668]
[1773362621583,2.98210302,2126.9,2125.7,1.17708029]
[1773362621584,1.8066834,2126.8,2125.7,1.17708029]
[1773362621962,1.8066834,2126.8,2126.1,0.001]
[1773362622202,1.8086834,2126.8,2126.1,0.001]
[1773362623550,1.17553016,2126.7,2126.1,0.001]
[1773362624058,0.002,2126.8,2126.1,2.09768972]
[1773362624252,1.17749302,2126.8,2126.2,0.04703226]
[1773362624451,1.17749302,2126.8,2126.1,2.09768972]
[1773362624975,1.17749302,2126.8,2126.2,0.04703226]
[1773362625158,0.002,2127.2,2126.3,2.14371977]
[1773362625480,0.002,2127.2,2126.3,2.09668972]
[1773362625650,0.002,2127.2,2126.6,2.09668972]
[1773362625651,0.82368628,2127.2,2126.6,2.09668972]
[1773362625846,0.002,2127.2,2126.6,2.09668972]
[1773362626163,0.002,2127.2,2126.6,3.42568972]
[1773362626962,0.82368628,2127.2,2126.6,3.42568972]
[1773362627686,0.82168628,2127.1,2126.7,1.17553016]
[1773362627853,0.002,2127.2,2126.7,1.17553016]
[1773362628054,0.002,2127.2,2126.7,3.27221988]
[1773362628775,0.002,2127.2,2126.7,1.17553016]
[1773362629174,1.17726595,2127.2,2126.7,1.17553016]
[1773362629372,0.002,2127.2,2126.7,1.17553016]
[1773362629573,0.002,2127.2,2126.7,2.09668972]
[1773362630584,4.69959641,2127.9,2126.7,2.09668972]
[1773362630585,1.17490409,2127.9,2126.8,2.27363311]
[1773362631286,1.17490409,2127.9,2126.9,1.329]
[1773362631471,1.17484463,2128.0,2127.0,2.27363311]
[1773362631788,1.17464643,2128.3,2127.2,2.27363311]
[1773362631970,3.40642636,2128.3,2127.2,2.27363311]
[1773362633064,1.17464643,2128.3,2127.3,2.27363311]
[1773362633384,1.17464643,2128.3,2127.4,3.60263311]
[1773362633890,4.69858572,2128.5,2127.5,1.17508813]
[1773362634389,2.23177993,2128.4,2127.4,4.77773241]
[1773362634591,2.23177993,2128.4,2127.4,2.5050993]
[1773362635096,4.69858572,2128.5,2127.5,2.27363311]
[1773362635466,3.40631598,2128.6,2127.5,2.27363311]
[1773362635666,3.40631598,2128.6,2127.4,1.1750993]
[1773362635667,2.23177993,2128.5,2127.4,1.1750993]
[1773362635885,1.17459124,2128.4,2127.5,1.33]
[1773362636191,2.23177993,2128.8,2127.6,2.27363311]
[1773362636563,2.23177993,2128.8,2127.5,4.84092921]
[1773362636564,1.17431537,2129.0,2127.9,2.27363311]
[1773362636763,2.23177993,2129.1,2127.9,2.27363311]
[1773362636995,2.23177993,2129.1,2128.0,1.33]
[1773362637369,0.002,2128.1,2128.0,1.33]
[1773362637570,0.002,2128.1,2127.3,6.97431804]
[1773362637770,0.002,2128.1,2127.0,4.70143192]
[1773362638094,0.002,2128.1,2127.1,2.27363311]
[1773362638261,2.23377993,2128.1,2126.9,2.50639558]
[1773362638468,2.23377993,2128.1,2126.9,1.331]
[1773362638677,2.23377993,2128.1,2126.9,1.17640904]
[1773362639768,1.17481203,2128.0,2126.9,1.17640904]
[1773362640493,3.40659196,2128.0,2126.9,1.17640904]
[1773362640673,2.23177993,2127.9,2126.9,1.17640904]
[1773362641002,2.23177993,2127.9,2126.9,0.001]
[1773362641909,1.17492245,2127.8,2126.9,0.001]
[1773362642205,3.40670238,2127.8,2126.9,0.04801678]
[1773362642507,2.23177993,2127.7,2126.9,0.001]
[1773362643307,1.17492245,2127.8,2126.9,0.001]
[1773362643511,0.002,2128.1,2127.0,0.065536]
[1773362643678,0.002,2128.1,2127.1,1.33]
[1773362643881,1.17676587,2128.1,2127.1,1.33]
[1773362644089,2.23377993,2128.1,2126.9,0.001]
[1773362644293,2.23177993,2127.9,2126.9,0.001]
[1773362644492,2.23177993,2127.8,2126.9,0.001]
[1773362644703,2.23177993,2127.8,2126.6,0.001]
[1773362644885,2.23177993,2127.8,2126.6,1.17657495]
[1773362645201,3.61677993,2127.7,2126.7,0.0470212]
[1773362645398,2.23177993,2127.7,2126.6,1.17657495]
[1773362646005,2.23177993,2127.7,2126.6,0.001]
[1773362646006,1.1750329,2127.6,2126.6,0.001]
[1773362647581,3.40681283,2127.6,2126.6,0.001]
[1773362648211,3.40681283,2127.6,2126.6,1.17658544]
[1773362648606,3.40681283,2127.6,2126.6,0.001]
[1773362648607,2.23177993,2127.5,2126.6,0.001]
[1773362649193,2.23177993,2127.5,2126.6,0.04802341]
[1773362649407,2.23177993,2127.5,2126.6,0.001]
[1773362650315,2.23177993,2127.3,2126.6,0.001]
[1773362651406,1.17514336,2127.4,2126.6,0.001]
[1773362651915,4.70020298,2127.6,2126.8,0.001]
[1773362652258,0.002,2127.4,2126.8,0.001]
[1773362656608,1.17714336,2127.4,2126.8,0.001]
[1773362657401,3.40892329,2127.4,2126.8,0.001]
[1773362657598,2.23177993,2127.3,2126.8,0.001]
[1773362658826,1.17525385,2127.2,2126.8,0.001]
[1773362662690,1.17523828,2127.3,2126.8,0.001]
[1773362663116,4.70270308,2127.4,2126.8,0.001]
[1773362663117,0.002,2127.4,2126.8,0.001]
[1773362663322,2.42481919,2127.4,2126.8,0.001]
[1773362665104,1.1751986,2127.3,2126.8,0.001]
[1773362665911,1.17718195,2127.4,2126.8,2.57244511]
[1773362666118,1.17718195,2127.4,2126.8,0.001]
[1773362666621,3.60000114,2127.4,2127.0,0.001]
[1773362667029,0.002,2127.2,2127.0,0.001]
[1773362673111,2.42481919,2127.2,2126.8,0.001]
[1773362673526,0.002,2127.2,2126.8,0.001]
[1773362673922,2.42481919,2127.2,2126.8,0.001]
[1773362674125,3.59812829,2127.1,2126.8,0.001]
[1773362674325,2.42281919,2127.1,2126.8,0.001]
[1773362675139,1.17729571,2127.2,2126.8,0.001]
[1773362677135,0.002,2127.2,2126.8,0.001]
[1773362678036,5.87779729,2127.4,2126.8,2.57244511]
[1773362678215,3.59785209,2127.6,2126.8,2.57244511]
[1773362678410,1.1750329,2127.6,2126.8,2.57244511]
[1773362678716,5.87779729,2127.5,2126.8,2.57244511]
[1773362679228,4.7025968,2127.5,2126.9,3.74686473]
[1773362679413,1.1750329,2127.6,2127.0,2.57144511]
[1773362679736,5.87779729,2127.6,2127.0,2.57144511]
[1773362680239,3.59763122,2128.0,2127.0,2.57144511]
[1773362680645,2.42281919,2127.9,2126.9,1.17541962]
[1773362680849,2.42281919,2127.9,2127.0,0.001]
[1773362681041,0.002,2127.3,2127.0,0.001]
[1773362681539,2.42281919,2127.2,2126.8,0.001]
[1773362681738,2.42281919,2127.0,2126.6,0.001]